[Event "Bijnor Open 2024"]
[Site "Bijnor"]
[Date "2024.03.17"]
[Round "2.9"]
[White "Dutta, Joydeep"]
[Black "Garth Pande"]
[Result "1/2-1/2"]
[ECO "E02"]
[WhiteElo "2041"]
[BlackElo "1579"]
[Annotator "NA RC"]
[PlyCount "78"]
[EventDate "2024.03.17"]
[EventCountry "IND"]
[SourceTitle "playchess.com"]
[Source "ChessBase"]
[SourceQuality "1"]
[TimeControl "5400+30"]

1. d4 {[%emt 0:03:03]} Nf6 {[%emt 0:00:32]} 2. c4 {[%emt 0:00:13]} e6 {[%emt 0:00:04]} 3. g3 {[%emt 0:00:10]} d5 {[%emt 0:00:10]} 4. Nf3 {[%emt 0:00:02]} c6 {[%emt 0:00:18]} 5. Bg2 {[%emt 0:01:42]} Be7 {[%emt 0:00:13]} 6. O-O {[%emt 0:00:15]} O-O {[%emt 0:00:05]} 7. Nbd2 {[%emt 0:00:03]} Nbd7 {[%emt 0:00:21]} 8. Qc2 {[%emt 0:00:04]} c5 {[%emt 0:01:42]} 9. cxd5 {[%emt 0:02:59]} Nxd5 {[%emt 0:00:17]} 10. a3 {[%emt 0:01:57]} cxd4 {[%emt 0:00:29]} 11. Nxd4 {[%emt 0:00:50]} N7b6 {[%emt 0:02:26]} 12. N2f3 {[%emt 0:09:37]} Bd7 {[%emt 0:03:25]} 13. e4 {[%emt 0:00:47]} Rc8 {[%emt 0:02:05]} 14. Qe2 {[%emt 0:03:33]} Nf6 {[%emt 0:01:09]} 15. Rd1 {[%emt 0:03:46]} Qe8 {[%emt 0:02:23]} 16. Ne5 {[%emt 0:01:59]} Bc5 {[%emt 0:02:52]} 17. Nxd7 {[%emt 0:05:04]} Nfxd7 {[%emt 0:00:46]} 18. Nb5 {[%emt 0:11:47]} a6 {[%emt 0:01:58]} 19. Nd6 {[%emt 0:05:16]} Bxd6 {[%emt 0:00:15]} 20. Rxd6 {[%emt 0:00:02]} Nc4 {[%emt 0:01:23]} 21. Rd1 {[%emt 0:03:38]} Na5 {[%emt 0:05:40]} 22. Bf4 {[%emt 0:03:48]} Nb3 {[%emt 0:02:48]} 23. Rab1 {[%emt 0:07:00]} e5 {[%emt 0:03:29]} 24. Be3 {[%emt 0:06:20]} Nf6 {[%emt 0:06:18]} 25. Rd6 {[%emt 0:04:23]} Qe7 {[%emt 0:01:44]} 26. Rb6 {[%emt 0:03:25]} Nd4 {[%emt 0:02:34]} 27. Bxd4 {[%emt 0:01:56]} exd4 {[%emt 0:00:06]} 28. e5 {[%emt 0:00:50]} Nd7 {[%emt 0:01:40]} 29. Rxb7 {[%emt 0:03:06]} Qxe5 {[%emt 0:00:30]} 30. Qxa6 {[%emt 0:04:57]} Nc5 {[%emt 0:02:49]} 31. Qa5 {[%emt 0:01:54]} Qf5 {[%emt 0:01:47]} 32. Rf1 {[%emt 0:00:12]} Qc2 {[%emt 0:02:31]} 33. Rc7 {[%emt 0:02:00]} Rxc7 {[%emt 0:01:54]} 34. Qxc7 {[%emt 0:00:01]} d3 {[%emt 0:00:23]} 35. Bd5 {[%emt 0:04:26]} d2 {[%emt 0:05:46]} 36. Bf3 {[%emt 0:00:12]} Qd3 {[%emt 0:01:09]} 37. Kg2 {[%emt 0:01:20]} Na4 {[%emt 0:02:51]} 38. Qb7 {[%emt 0:02:57]} Qc2 {[%emt 0:02:22]} 39. Bd1 {[%emt 0:01:12]} Qxb2 {[%emt 0:05:52]} 1/2-1/2

[Event "Bijnor Open 2024"]
[Site "Bijnor"]
[Date "2024.03.17"]
[Round "2.10"]
[White "Lakshya Nigam"]
[Black "Singh, Arvinder Preet"]
[Result "0-1"]
[ECO "A36"]
[WhiteElo "1582"]
[BlackElo "2030"]
[Annotator "NA RC"]
[PlyCount "54"]
[EventDate "2024.03.17"]
[EventCountry "IND"]
[SourceTitle "playchess.com"]
[Source "ChessBase"]
[SourceQuality "1"]
[TimeControl "5400+30"]

1. e4 {[%emt 0:00:04]} c5 {[%emt 0:00:12]} 2. Ne2 {[%emt 0:00:08]} Nc6 {[%emt 0:00:23]} 3. d3 {[%emt 0:00:03]} g6 {[%emt 0:00:20]} 4. c4 {[%emt 0:00:03]} Bg7 {[%emt 0:00:11]} 5. Nbc3 {[%emt 0:00:04]} d6 {[%emt 0:01:37]} 6. g3 {[%emt 0:00:04]} e6 {[%emt 0:11:20]} 7. Bg2 {[%emt 0:00:26]} Nge7 {[%emt 0:00:09]} 8. O-O {[%emt 0:00:19]} O-O {[%emt 0:00:09]} 9. Be3 {[%emt 0:00:14]} Nd4 {[%emt 0:00:24]} 10. Qd2 {[%emt 0:00:23]} Re8 {[%emt 0:08:14]} 11. Bh6 {[%emt 0:10:06]} Bh8 {[%emt 0:00:10]} 12. f4 {[%emt 0:00:15]} d5 {[%emt 0:14:01]} 13. cxd5 {[%emt 0:05:45]} Nxe2+ {[%emt 0:01:54]} 14. Nxe2 {[%emt 0:02:43]} exd5 {[%emt 0:00:04]} 15. Rfd1 {[%emt 0:01:38]} Bg4 {[%emt 0:01:26]} 16. h3 {[%emt 0:01:09]} Bxe2 {[%emt 0:05:07]} 17. Qxe2 {[%emt 0:00:37]} Nf5 {[%emt 0:00:31]} 18. Bg5 {[%emt 0:00:13]} Bd4+ {[%emt 0:08:08]} 19. Kh2 {[%emt 0:00:34]} f6 {[%emt 0:00:57]} 20. Bh4 {[%emt 0:02:30]} Ne3 {[%emt 0:01:21]} 21. e5 {[%emt 0:04:28]} g5 {[%emt 0:02:31]} 22. exf6 {[%emt 0:11:09]} gxh4 {[%emt 0:00:17]} 23. Qh5 {[%emt 0:00:52]} Qxf6 {[%emt 0:01:26]} 24. Bxd5+ {[%emt 0:00:29]} Kh8 {[%emt 0:02:25]} 25. Be4 {[%emt 0:00:33]} hxg3+ {[%emt 0:01:03]} 26. Kh1 {[%emt 0:00:32]} Rxe4 {[%emt 0:00:09]} 27. dxe4 {[%emt 0:01:02]} g2+ {[%emt 0:00:07]} 0-1

[Event "Bijnor Open 2024"]
[Site "Bijnor"]
[Date "2024.03.18"]
[Round "3.1"]
[White "Ayush Saxena"]
[Black "Srihari L R"]
[Result "0-1"]
[ECO "B08"]
[WhiteElo "1708"]
[BlackElo "2490"]
[Annotator "TA"]
[PlyCount "144"]
[EventDate "2024.03.17"]
[EventCountry "IND"]
[SourceTitle "playchess.com"]
[Source "ChessBase"]
[SourceQuality "1"]
[TimeControl "5400+30"]

{[%evp 13,144,52,37,10,25,10,25,26,21,0,2,0,-14,-31,-36,-26,-6,-14,0,-34,-15,-12,-12,-6,-10,-14,-2,-1,0,-5,0,0,0,-2,-1,-90,-100,-97,-103,-86,-92,-115,-72,-60,-66,-97,-105,-99,-74,-133,-139,-141,-141,-144,-140,-140,-140,-140,-140,-140,-137,-124,-114,-140,-139,-134,-8,-8,-8,-8,-21,-8,-8,-8,-8,-47,-8,-8,-8,-8,-8,-8,-8,-8,-8,-8,-8,-13,0,0,0,0,0,0,0,0,0,0,0,0,0,0,0,0,0,0,0,0,0,0,0,-8,-8,-8,-8,-8,-8,-8,0,0,0,-8,0,0,0,-29983,-29984,-29984,-29984,-29986,-29987,-29987,-29988]} 1. e4 {[%emt 0:00:03]} d6 {[%emt 0:02:41]} 2. d4 {[%emt 0:00:38]} Nf6 {[%emt 0:01:03][%cal Bg8f6,Bf6e8,Be8c7][%mdl 32]} 3. Nc3 {[%emt 0:00:08]} g6 {[%emt 0:01:12]} 4. Nf3 {[%emt 0:00:18]} Bg7 {[%emt 0:00:08]} 5. Bc4 {[%emt 0:02:16]} O-O {[%emt 0:01:21]} 6. O-O {[%emt 0:01:17]} c6 {[%emt 0:01:07]} 7. e5 {[%emt 0:02:36]} Ne8 {[%emt 0:13:35]} 8. h3 {[%emt 0:08:53] Verhindert Bg4.} dxe5 {[%emt 0:03:45]} 9. dxe5 {[%emt 0:03:10]} Qxd1 {[%emt 0:00:20]} 10. Rxd1 {[%emt 0:00:08] Weiß hat minimalen Vorteil.} Nc7 {[%emt 0:00:06]} 11. Ng5 {[%emt 0:02:10]} Nba6 {[%emt 0:07:07]} 12. Bf4 {[%emt 0:18:53]} h6 {[%emt 0:02:42]} 13. Nge4 {[%emt 0:03:06]} Be6 {[%emt 0:00:47]} 14. Be2 {[%emt 0:02:02]} Rad8 {[%emt 0:03:33]} 15. a3 {[%emt 0:00:39] Verhindert Nb4} Nb8 {[%emt 0:04:14]} 16. Kf1 {[%emt 0:12:53]} Nd7 {[%emt 0:13:41]} 17. Nf6+ {[%emt 0:01:24]} exf6 {[%emt 0:02:09]} 18. exf6 {[%emt 0:00:08]} Nxf6 {[%emt 0:01:19]} 19. Bxc7 {[%emt 0:00:11]} Rc8 {[%emt 0:00:07]} 20. Be5 {[%emt 0:01:08]} Rfe8 {[%emt 0:00:01]} 21. Bd4 {[%emt 0:00:29]} a6 {[%emt 0:05:33]} 22. Rd2 {[%emt 0:06:51]} c5 {[%emt 0:00:18]} 23. Be3 {[%emt 0:01:15]} b5 {[%emt 0:00:47]} 24. Rad1 {[%emt 0:01:23] [#]} (24. Kg1 $11 {hält das Gleichgewicht.}) 24... b4 $1 $17 {[%emt 0:00:36]} 25. axb4 {[%emt 0:02:05]} cxb4 {[%emt 0:00:03]} 26. Na4 {[%emt 0:00:40]} Ne4 $36 {[%emt 0:00:19][%mdl 2048] Schwarz ist am Drücker.} 27. Rd3 {[%emt 0:00:12]} Rxc2 {[%emt 0:03:55][%cal Oe6c4] Schwarz steht deutlich aktiver.} 28. Rd8 {[%emt 0:04:45]} Rc8 $1 {[%emt 0:05:51]} 29. Rxe8+ {[%emt 0:00:58]} Rxe8 {[%emt 0:00:09]} 30. Bxa6 {[%emt 0:00:40]} Ra8 {[%emt 0:00:51]} 31. Bb7 {[%emt 0:00:09]} (31. Bb5 $142) 31... Rxa4 {[%emt 0:00:24]} 32. Bxe4 {[%emt 0:00:15]} Bxb2 {[%emt 0:02:16] Droht ...b3 und aus.} 33. Rd8+ {[%emt 0:02:55]} Kh7 {[%emt 0:01:35] ...b3 wäre nun fies.} 34. Bd4 {[%emt 0:00:09]} Bxd4 {[%emt 0:05:03]} 35. Rxd4 {[%emt 0:00:08][%mdl 4096] Endspiel. KRB-KRB} Ra1+ {[%emt 0:00:03]} 36. Ke2 {[%emt 0:00:12]} Ra2+ {[%emt 0:00:03]} 37. Ke3 {[%emt 0:00:28]} Rb2 {[%emt 0:01:07]} 38. f4 {[%emt 0:01:49]} Kg7 {[%emt 0:01:38]} 39. g4 {[%emt 0:02:19]} f5 {[%emt 0:03:51]} (39... Rb3+ $17 40. Kd2 Rxh3) 40. Rd6 $1 $11 {[%emt 0:00:40]} Kf7 {[%emt 0:04:07]} 41. gxf5 {[%emt 0:00:15]} gxf5 {[%emt 0:00:11]} 42. Bd5 {[%emt 0:02:27]} Bxd5 {[%emt 0:00:04]} 43. Rxd5 {[%emt 0:00:04] KR-KR} Ke6 {[%emt 0:00:03]} 44. Rb5 {[%emt 0:00:13]} b3 {[%emt 0:03:09] Zielt auf ...Rh2 ab.} 45. Kd4 {[%emt 0:00:39]} Rd2+ {[%emt 0:01:34]} 46. Kc3 {[%emt 0:00:39]} Rf2 {[%emt 0:00:28]} 47. Rb6+ {[%emt 0:01:36]} Kd5 {[%emt 0:01:39]} 48. Kxb3 {[%emt 0:01:14]} Rf3+ {[%emt 0:00:09]} (48... Rxf4 49. Rxh6 Ke4 50. Rh7 $15) 49. Kc2 {[%emt 0:01:05]} Rxh3 {[%emt 0:00:13] Weiss muss nun ...Ke4 beachten.} 50. Rb4 {[%emt 0:00:13]} h5 {[%emt 0:01:44][%cal Bh6h5,Bh5h4,Bh4h3][%mdl 32]} 51. Kd2 {[%emt 0:00:07]} h4 {[%emt 0:00:43]} 52. Ke2 {[%emt 0:00:07]} Rc3 {[%emt 0:00:28]} 53. Rb5+ {[%emt 0:00:59]} Rc5 {[%emt 0:00:36]} 54. Rb6 {[%emt 0:00:07]} h3 {[%emt 0:02:42]} 55. Kf2 {[%emt 0:00:34]} h2 {[%emt 0:02:49]} 56. Kg2 {[%emt 0:00:21]} Rc2+ {[%emt 0:01:59]} 57. Kh1 {[%emt 0:00:11]} Rc8 {[%emt 0:00:31]} 58. Kxh2 {[%emt 0:00:12]} Ke4 {[%emt 0:00:08]} 59. Kg3 {[%emt 0:01:41]} Rc3+ {[%emt 0:00:34]} 60. Kf2 {[%emt 0:00:26]} Kxf4 {[%emt 0:00:06]} 61. Rb4+ {[%emt 0:00:10]} Kg5 {[%emt 0:00:02]} 62. Rb5 {[%emt 0:00:16]} Kg4 {[%emt 0:00:07]} 63. Rb4+ {[%emt 0:00:59]} f4 {[%emt 0:00:05]} 64. Rb2 {[%emt 0:00:24] Verhindert Rc2+} Rh3 {[%emt 0:00:32]} 65. Kg1 {[%emt 0:02:22] Es drohte Rh2} Kg3 {[%emt 0:00:14]} 66. Rg2+ {[%emt 0:02:21]} Kf3 {[%emt 0:00:13]} 67. Rf2+ {[%emt 0:00:55]} Kg4 {[%emt 0:00:15]} 68. Rg2+ {[%emt 0:00:29]} Rg3 {[%emt 0:00:50] ( -> ...f3)} 69. Kf2 $2 {[%emt 0:00:10][%mdl 8192] [#]} (69. Kh2 $11) 69... Kh3 {[%emt 0:00:08] Schwarz setzt Matt.} 70. Rg1 {[%emt 0:02:59]} Rxg1 {[%emt 0:00:06]} 71. Kxg1 {[%emt 0:00:05]} Kg3 {[%emt 0:00:02]} 72. Kf1 {[%emt 0:00:22]} Kf3 {[%emt 0:00:03] Gewichteter Fehlerwert: Weiß=0.09 (makellos) /Schwarz=0.08 (makellos) .  Verlustzug:     	Weiß=1     	---        Fehler:       	Weiß=2     	Schwarz=1     Ungenau:       	Weiß=3     	Schwarz=2     OK:         	Weiß=34    	Schwarz=17    Bester:       	Weiß=7     	Schwarz=4     Stark:        	Weiß=1     	Schwarz=2} 0-1

[Event "Bijnor Open 2024"]
[Site "Bijnor"]
[Date "2024.03.18"]
[Round "3.2"]
[White "Neelash Saha"]
[Black "Mohan, Naithani"]
[Result "1-0"]
[ECO "A81"]
[WhiteElo "2463"]
[BlackElo "1698"]
[Annotator "TA"]
[PlyCount "33"]
[EventDate "2024.03.17"]
[EventCountry "IND"]
[SourceTitle "playchess.com"]
[Source "ChessBase"]
[SourceQuality "1"]
[TimeControl "5400+30"]

{[%evp 9,33,39,50,47,53,35,48,32,63,62,163,100,203,192,251,268,414,426,654,652,614,390,390,321,319,326]} 1. d4 {[%emt 0:00:18]} e6 {[%emt 0:00:17]} 2. Nf3 {[%emt 0:00:34]} f5 {[%emt 0:00:22]} 3. g3 {[%emt 0:01:44]} b6 {[%emt 0:00:53]} 4. d5 {[%emt 0:02:37]} Bb7 {[%emt 0:03:45]} 5. dxe6 {[%emt 0:01:51]} dxe6 {[%emt 0:00:28]} 6. Qxd8+ {[%emt 0:00:08]} Kxd8 {[%emt 0:00:22]} 7. Bg2 {[%emt 0:00:06][%cal Oe2e4]} Bd6 {[%emt 0:01:37]} 8. Nc3 {[%emt 0:01:38][%cal Oe2e4] White is slightly better.} a6 {[%emt 0:00:53]} 9. e4 {[%emt 0:03:47]} Bb4 {[%emt 0:10:23]} (9... fxe4 $14 10. Ng5 Ke7) 10. Bg5+ {[%emt 0:01:07]} ({White should play} 10. Ng5 $18) 10... Ke8 {[%emt 0:10:28]} (10... Kc8 $16) 11. exf5 $18 {[%emt 0:00:44] 0-0-0 is the strong threat.} Bxc3+ {[%emt 0:06:40]} (11... Ne7 $142 12. O-O-O (12. fxe6 Rf8 $18) 12... Bxc3) 12. bxc3 {[%emt 0:00:05]} exf5 {[%emt 0:00:26]} (12... h6 $142) 13. O-O-O {[%emt 0:00:07] [#] White wants to mate with Rd8+.} Nf6 {[%emt 0:00:39] Black is weak on the dark squares} (13... Nc6 $142 14. Nh4 Kf8) 14. Rhe1+ {[%emt 0:00:06]} Be4 {[%emt 0:02:46]} 15. Ne5 {[%emt 0:05:45] Threatens to win with f3.} Bxg2 {[%emt 0:11:52]} 16. Bxf6 {[%emt 0:00:19]} gxf6 {[%emt 0:04:50]} 17. Ng6+ {[%emt 1:18:04] White took control after the opening.   Weighted Error Value: White=0.41/Black=0.99.  Mistake:       	White=1     	Black=5      Inaccurate:     	---       	Black=1      OK:         	White=3     	Black=1      Best:        	White=3     	---} 1-0

[Event "Bijnor Open 2024"]
[Site "Bijnor"]
[Date "2024.03.18"]
[Round "3.3"]
[White "Sushrutha, Reddy"]
[Black "Laxman, R.R."]
[Result "0-1"]
[ECO "A29"]
[WhiteElo "1707"]
[BlackElo "2331"]
[Annotator "TA"]
[PlyCount "104"]
[EventDate "2024.03.17"]
[EventCountry "IND"]
[SourceTitle "playchess.com"]
[Source "ChessBase"]
[SourceQuality "1"]
[TimeControl "5400+30"]

{[%evp 19,104,0,10,-16,-17,-16,-24,-30,0,-39,-43,-41,-20,-18,-28,-53,-41,-55,-44,-79,-77,-86,-77,-90,-59,-52,-64,-108,-97,-179,-193,-199,-181,-336,-249,-279,-228,-218,-209,-202,-210,-276,-246,-238,-244,-250,-240,-259,-245,-255,-255,-255,-255,-275,-275,-275,-267,-267,-267,-267,-267,-272,-270,-422,-432,-418,-400,-384,-318,-312,-311,-410,-443,-443,-443,-425,-414,-433,-426,-424,-424,-470,-459,-449,-393,-1402,-1363]} 1. c4 {[%emt 0:00:30]} e5 {[%emt 0:01:58]} 2. Nc3 {[%emt 0:00:14]} Nf6 {[%emt 0:00:17]} 3. d3 {[%emt 0:00:21]} d5 {[%emt 0:01:00]} 4. cxd5 {[%emt 0:00:13]} Nxd5 {[%emt 0:00:05]} 5. Nf3 {[%emt 0:00:10]} Nc6 {[%emt 0:00:14]} 6. g3 {[%emt 0:00:12]} Be7 {[%emt 0:00:32]} 7. Bg2 {[%emt 0:00:20]} Nb6 {[%emt 0:00:09]} 8. Be3 {[%emt 0:00:29]} O-O {[%emt 0:00:20]} 9. O-O {[%emt 0:00:05]} Be6 {[%emt 0:00:24]} 10. Qc1 {[%emt 0:03:31]} Nd5 {[%emt 0:05:17]} 11. Bg5 {[%emt 0:09:59]} f6 {[%emt 0:00:32]} 12. Bd2 {[%emt 0:00:08]} Qd7 {[%emt 0:00:18]} 13. Ne4 {[%emt 0:00:22] Schwarz hat minimalen Vorteil.} b6 {[%emt 0:01:22]} 14. Nc3 {[%emt 0:03:05]} Rad8 {[%emt 0:00:27]} 15. Rd1 {[%emt 0:01:26]} Rfe8 {[%emt 0:00:05]} 16. Nxd5 {[%emt 0:00:27]} Bxd5 {[%emt 0:00:05]} 17. Be3 {[%emt 0:01:28]} Bf8 {[%emt 0:01:39]} 18. Qd2 {[%emt 0:02:37]} Ne7 {[%emt 0:01:06][%cal Bc6e7,Be7c8,Bc8d6,Bd6c4][%mdl 32]} 19. d4 {[%emt 0:02:46]} e4 {[%emt 0:03:49] Schwarz steht aktiver.} 20. Ne1 {[%emt 0:00:50]} Qe6 $36 {[%emt 0:00:17][%mdl 2048] Schwarz hat starke Initiative.} 21. b4 {[%emt 0:02:28]} Nc8 {[%emt 0:01:23]} 22. Rdc1 {[%emt 0:07:32]} c6 {[%emt 0:00:15]} 23. Rc2 {[%emt 0:00:38] Schwarz führt seinen Vorteil zum Gewinn.} Nd6 {[%emt 0:00:19]} 24. Rac1 {[%emt 0:00:56]} (24. Qc1 $17) 24... Nc4 $19 {[%emt 0:00:25]} 25. Qc3 {[%emt 0:00:17]} b5 {[%emt 1:20:42][%cal Oa7a5]} 26. a4 $2 {[%emt 0:00:43]} (26. a3) 26... bxa4 {[%emt 0:00:00]} 27. Ra1 {[%emt 0:00:33]} a3 {[%emt 0:00:00]} 28. Bc1 {[%emt 0:01:00]} Rb8 {[%emt 0:00:00]} 29. Bxa3 {[%emt 0:00:34]} Rb5 {[%emt 0:00:00]} 30. e3 {[%emt 0:00:51]} Nxa3 {[%emt 0:00:00]} 31. Qxa3 {[%emt 0:02:29] [#]} a5 {[%emt 0:00:00][%mdl 512]} 32. Bf1 {[%emt 0:01:12]} axb4 {[%emt 0:00:00]} (32... Rxb4 33. Qxa5 g5 34. Ng2) 33. Qa6 {[%emt 0:02:36]} Rbb8 {[%emt 0:00:00]} 34. Bc4 {[%emt 0:00:26]} b3 {[%emt 0:00:00]} 35. Bxd5 {[%emt 0:00:15]} cxd5 {[%emt 0:00:00]} 36. Rc6 {[%emt 0:00:42]} Qd7 {[%emt 0:00:00][%cal Ob8a8] Und jetzt ...Ra8! wäre schön.} 37. Rb6 {[%emt 0:00:26]} Qc7 {[%emt 0:00:00]} 38. Rxb8 {[%emt 0:02:11]} Rxb8 {[%emt 0:00:00]} 39. Qe6+ {[%emt 0:00:31]} Qf7 {[%emt 0:00:00]} 40. Qc6 {[%emt 0:00:51]} Qb7 {[%emt 0:00:00]} 41. Qe6+ {[%emt 0:00:55] [#]} (41. Qxb7 {ist eine bessere Verteidigung.} Rxb7 42. Rb1) 41... Kh8 $1 {[%emt 0:00:00]} 42. Rb1 {[%emt 0:01:41]} b2 {[%emt 0:00:00]} 43. Qg4 {[%emt 0:04:05]} Qb3 {[%emt 0:00:00] Weiss hat schwache schwarze Felder} 44. Qe2 {[%emt 0:00:39]} g5 {[%emt 0:00:00]} 45. h3 {[%emt 0:00:59]} Qc3 {[%emt 0:00:00]} 46. Qc2 {[%emt 0:01:09]} Qxc2 {[%emt 0:00:00]} 47. Nxc2 {[%emt 0:00:05][%mdl 4096] Endspiel. KRB-KRN} h5 {[%emt 0:00:00]} 48. Kf1 {[%emt 0:01:21]} f5 {[%emt 0:00:00]} 49. Ke2 {[%emt 0:00:17]} Bd6 {[%emt 0:00:00]} 50. Kd2 {[%emt 0:00:43]} Bc7 {[%emt 0:00:00]} 51. Ne1 {[%emt 0:03:38]} Ba5+ {[%emt 0:00:00]} 52. Kc2 $2 {[%emt 0:00:03]} (52. Kd1 Bxe1 53. Kxe1) 52... Rc8+ {[%emt 0:00:00] Gewichteter Fehlerwert: Weiß=0.36/Schwarz=0.11 (sehr präzise) .  Fehler:       	Weiß=4     	---        Ungenau:       	Weiß=5     	Schwarz=2     OK:         	Weiß=12    	Schwarz=17    Bester:       	Weiß=3     	Schwarz=3     Stark:        	---       	Schwarz=1     Brilliant:      	---       	Schwarz=1} 0-1

[Event "Bijnor Open 2024"]
[Site "Bijnor"]
[Date "2024.03.18"]
[Round "3.4"]
[White "Vrashank Chouhan"]
[Black "Priyansh Arora"]
[Result "1-0"]
[ECO "E73"]
[WhiteElo "2330"]
[BlackElo "1695"]
[Annotator "TA"]
[PlyCount "65"]
[EventDate "2024.03.17"]
[EventCountry "IND"]
[SourceTitle "playchess.com"]
[Source "ChessBase"]
[SourceQuality "1"]
[TimeControl "5400+30"]

{[%evp 14,65,63,71,70,69,63,71,85,97,109,109,122,133,129,131,142,100,144,44,68,50,120,64,93,123,145,142,189,186,164,183,263,210,215,202,229,210,254,202,270,229,412,417,382,281,212,-188,178,0,373,-862,450,432]} 1. d4 {[%emt 0:00:02]} Nf6 {[%emt 0:00:09]} 2. c4 {[%emt 0:00:06]} g6 {[%emt 0:00:08]} 3. Nc3 {[%emt 0:00:05]} Bg7 {[%emt 0:00:07]} 4. e4 {[%emt 0:00:08]} d6 {[%emt 0:00:05]} 5. Be2 {[%emt 0:00:52]} O-O {[%emt 0:00:25]} 6. Be3 {[%emt 0:00:07]} e5 {[%emt 0:00:10]} 7. d5 {[%emt 0:00:06]} a5 {[%emt 0:02:22]} 8. g4 {[%emt 0:00:41]} Na6 {[%emt 0:03:29]} 9. h4 {[%emt 0:03:26][%cal Bh2h4,Bh4h5][%mdl 32]} Nc5 {[%emt 0:03:39]} 10. f3 {[%emt 0:00:02]} Bd7 {[%emt 0:04:22] White is better.} 11. h5 {[%emt 0:00:32]} Qe7 {[%emt 0:02:57]} 12. Qd2 {[%emt 0:01:12]} Na4 {[%emt 0:04:21]} 13. Nxa4 {[%emt 0:07:39]} Bxa4 {[%emt 0:00:14]} 14. Nh3 {[%emt 0:00:16]} Bd7 {[%emt 0:01:22]} 15. Ng5 {[%emt 0:12:45]} c6 {[%emt 0:08:18]} 16. Bd3 {[%emt 0:08:36]} (16. dxc6 $16 bxc6 17. h6) 16... cxd5 {[%emt 0:07:55]} 17. cxd5 {[%emt 0:01:06][%cal Bc4d5,Bd5e6][%mdl 32]} b5 {[%emt 0:01:42]} (17... Rfc8 $14) 18. Rc1 {[%emt 0:10:13]} (18. O-O-O $16) 18... b4 {[%emt 0:10:27]} 19. hxg6 {[%emt 0:05:04]} fxg6 {[%emt 0:01:09]} 20. Ne6 {[%emt 0:00:11] White is much more active.} Bxe6 {[%emt 0:03:10]} (20... Rfc8 $16 {is a better defense.}) 21. dxe6 $18 {[%emt 0:00:25]} Rac8 {[%emt 0:03:49] Black is weak on the light squares} 22. Bc4 {[%emt 0:01:44]} Rc6 {[%emt 0:06:52]} (22... Rxc4 $142 23. Rxc4 Qxe6) 23. Bg5 {[%emt 0:04:42]} Rfc8 {[%emt 0:05:34]} 24. b3 {[%emt 0:00:34]} Bh8 {[%emt 0:04:21]} 25. Rd1 {[%emt 0:07:19]} R8c7 {[%emt 0:03:29]} 26. Qh2 {[%emt 0:05:44] Threatens to win with Bxf6.} Rc8 {[%emt 0:02:07]} 27. Qh6 {[%emt 0:07:24]} Rxc4 $2 {[%emt 0:14:30]} (27... a4 {was necessary.} 28. Qh2 Rb8) 28. bxc4 {[%emt 0:00:07][%cal Od1d6] aiming for Rxd6!} Rxc4 {[%emt 0:00:05]} 29. Bxf6 {[%emt 0:01:53]} Bxf6 {[%emt 0:01:06]} 30. Rd3 $4 {[%emt 0:22:29][%mdl 8192]} (30. Rxd6 $1 $18 {[%cal Od6d8] White threatens Rd8+! and mate.} Rc7 (30... Qxd6 31. Qxh7+ Kf8 32. Qf7#) (30... Bg5 31. Rd8+ Qxd8 32. Qxh7+ Kf8 33. Qf7#) 31. Rd7 (31. Ra6 Rc8 $14) 31... Rxd7 32. exd7 Qxd7 33. Qd2) 30... Qc7 {[%mdl 8192] [#]} (30... Qxe6 $2 31. Qxh7+ Kf8 32. Qa7 $18 (32. Qxg6 $2 Bh4+ 33. Rxh4 Qxg6 $19)) (30... Bg5 $1 $19 {[%cal Rg5h6] avoids the disaster.} 31. Qh2 Rc1+ (31... Qxe6 $2 32. Qxh7+ Kf8 33. Qb7 $18) 32. Rd1 Qc7 (32... Qxe6 $2 33. Qxh7+ Kf8 34. Rxc1 $18) 33. Rxc1 Qxc1+ 34. Ke2 Qe3+ 35. Kd1 h6 (35... Qxf3+ $2 36. Kc2 $19)) 31. Rxd6 $2 {[%emt 0:00:00]} Rc1+ $2 {[%emt 0:04:59][%mdl 8192]} ({Not} 31... Qxd6 32. Qxh7+ Kf8 33. Qf7#) (31... Bg5 $1 $11 32. Qxg5 Qxd6) 32. Kf2 $4 {[%emt 0:00:00][%mdl 8192]} (32. Rd1 $18 Rxd1+ (32... Qc3+ 33. Kf2 $18) 33. Kxd1) 32... Rc2+ $4 {[%emt 0:00:00][%mdl 8192]} ({And not} 32... Qxd6 33. Qxh7+ Kf8 34. Qf7#) (32... Rxh1 $19 {and all is fine.} 33. Qxh1 Qxd6) 33. Rd2 {[%emt 0:00:58] Weighted Error Value: White=0.71/Black=0.92.  Loses game:     	---       	Black=1      Missed win:     	White=3     	Black=2      Mistake:       	White=2     	Black=4      Inaccurate:     	---       	Black=3      OK:         	White=9     	Black=3      Best:        	White=1     	---} 1-0